{"text_format":"3","workbook":"xlsx","n_sheets":12,"sheets":["CalReg","Instruções","Resultado","Cálculo e Premissas >>","Financeiro","Custos Financeiros Diretos","Custos de Conformidade","Custos - Administração Pública","Suporte >>","Metodologia","Taxa de Desconto","Base"],"not_rendered":{"charts":2,"images":32,"macros":1,"defined_names":36},"read":"whole","date_system":"1900"}

{"sheet":"CalReg","index":0,"n_rows":25,"n_cols":4,"rows_kept":25}
[]
[null,"SEPEC/SEAE: Secretaria de Advocacia da Concorrência e Competitividade"]
[]
[]
[{"$nulls":3},{"$f":"\"CalReg: Calculadora de Onerosidade Regulatória \"&versao","v":"CalReg: Calculadora de Onerosidade Regulatória v2.1"}]
[]
[]
[]
[]
[]
[null,null,"Versão ","Principais alterações"]
[null,null,{"$f":"\"1.0\"","v":"1.0"},"Versão inicial com cálculo de custos - inputs"]
[null,null,{"$f":"\"2.0\"","v":"2.0"},"Incorporado cálculo de valor presente"]
[]
[]
[]
[]
[null,null,"Equipe técnica"]
[null,null,"Carlos da Costa","Secretário Especial da SEPEC"]
[null,null,"Geanlunca Lorenzon","Secretário da Seae"]
[null,null,"Alexandre Messa","Secretário-Adjunto da Seae"]
[null,null,"Adriano Paranaíba","Subsecretário da Sureg/Seae"]
[null,null,"Paulo Isobe","Coordenador-Geral da Corps/Sureg/Seae"]
[null,null,"Vitor Pinto","Assessor Técnico da Corps da Seae"]
[null,null,"Michael Dantas","Assessor da Seae"]

{"sheet":"Instruções","index":1,"n_rows":47,"n_cols":4,"rows_kept":47}
[]
[null,"SEPEC/Seae: Secretaria de Advocacia da Concorrência e Competitividade"]
[]
[null,null,{"$f":"\"CalReg: Calculadora de Impacto Regulatória \" & versao","v":"CalReg: Calculadora de Impacto Regulatória v2.1"}]
[null,null,"Última atualização: Outubro/2020"]
[]
[null,"- Esta calculadora pode ser utilizada para subsidiar análises de impacto regulatório (AIR) e para outras análises de custo regulatório"]
[null,"- A utilização desta calculadora é de responsabilidade do usuário."]
[null,"- Esta calculadora foi elaborada pela equipe da Seae/SEPEC do Ministério da Economia"]
[null,"- Em caso de dúvidas e sugestões, favor contactar:"]
[null,"1. Vitor Villarino","Assessor Técnico da CORPS/Seae","vitor.villarino@economia.gov.br"]
[null,"2. Paulo Isobe","Coordenador da CORPS/Seae","paulo.isobe@economia.gov.br"]
[]
[]
[null,"0. Instruções Gerais"]
[null,"Preencher células com esta formatação"]
[null,"NÃO ALTERAR as abas de suporte"]
[null,"Livre utilização, desde que citada a fonte"]
[null,"Habilite a execução de macros!"]
[]
[null,"1. Resultado"]
[null,"Traz os resultados do cálculo de impacto regulatório, conforme classificações utilizadas na metodologia"]
[null,"Preencher nome da regulação em análise e início de sua aplicabilidade"]
[null,"O ano de início deve ser aquele em que a regulação passar a gerar custo regulatório, e não o de sua publicação"]
[]
[]
[null,"2. Financeiro"]
[null,"A visão financeira incorpora os inputs dos usuários e traz a Valor Presente os valores, de acordo com o período e taxa de desconto definidos pelo usuário."]
[null,"Preencher a taxa de desconto e o período desejados."]
[]
[]
[null,"3. Cálculo e Premissas (inputs)"]
[null,"Abas que devem ser preenchidas para gerar inputs para o cálculo de impato regulatório"]
[null,"Em caso de preenchimento direto, pela tabela ao invés de por formulário, é fundamental manter a mesma nomenclatura usada no formulário."]
[null,"Caso seja necessário, pode-se apagar apenas uma linha referente ao custo inserido de forma errônea."]
[]
[null,"Financeiro: preencher período e taxa de desconto"]
[null,"Custos Financeiros Direitos: preencher aba conforme formulário ou inserir valores diretamente na tabela , conforme nomenclatura utilizada no formulário"]
[null,"Custos de Conformidade: preencher aba conforme formulário ou inserir valores diretamente na tabela , conforme nomenclatura utilizada no formulário"]
[null,"Custos da Administração Pública: preencher aba conforme formulário ou inserir valores diretamente na tabela , conforme nomenclatura utilizada no formulário"]
[]
[]
[null,"4. Suporte"]
[null,"Abas de suporte para funcionamento da calculadora e suporte metodológico"]
[null,"Metodologia: Esclarecimento sobre metodologia utilizada"]
[null,"Taxa de Desconto: aba de suporte para o cálculo a valor presente. Inspirada na Calculadora de Impacto Regulatório do Reino Unido (ver aba metodologia)"]
[null,"Base: aba de suporte para os formulários da planilha."]

{"sheet":"Resultado","index":2,"n_rows":47,"n_cols":16372,"rows_kept":47}
[]
[null,"SEPEC/Seae: Secretaria de Advocacia da Concorrência e Competitividade",{"$nulls":16368},"Milhões",{"v":1000000,"d":"1,000,000"}]
[{"$nulls":16370},"Milhares",{"v":1000,"d":"1,000"}]
[{"$nulls":16370},"Unitário",1]
[null,{"$f":"\"Cálculo de Onerosidade Regulatória: \"&C8","v":"Cálculo de Onerosidade Regulatória: "}]
[]
[]
[null,"Regulação em análise"]
[]
[null,"Ano Inicial de Impacto "]
[]
[]
[]
[null,"1. Custo Regulatório Total"]
[null,"Trazido a valor presente líquido",{"$nulls":4},{"$f":"\"Quebra por Tipo de Custo (\" & C16 & \")\"","v":"Quebra por Tipo de Custo (Milhões)"}]
[null,"Unidade","Milhões",{"$f":"VLOOKUP(C16,$XEQ$2:$XER$4,2,FALSE)","v":1000000}]
[]
[]
[null,"Total",{"$f":"SUM(C20:C22)","v":{"v":0,"d":"R$0.00"}},{"$f":"IFERROR(C19/$C$19,\"-\")","v":"-"}]
[null,"Custos Financeiros Diretos",{"$f":"Financeiro!O12/D16","v":{"v":0,"d":"R$0.00"}},{"$f":"IFERROR(C20/$C$19,\"-\")","v":"-"}]
[null,"Custos de Conformidade",{"$f":"Financeiro!O16/D16","v":{"v":0,"d":"R$0.00"}},{"$f":"IFERROR(C21/$C$19,\"-\")","v":"-"}]
[null,"Custos Adm Pública",{"$f":"Financeiro!O20/D16","v":{"v":0,"d":"R$0.00"}},{"$f":"IFERROR(C22/$C$19,\"-\")","v":"-"}]
{"$rows_empty":8}
[null,"2. Custo Regulatório ao Longo do Tempo"]
[null,"Nominal"]
[null,"Unidade","Milhões",{"$f":"VLOOKUP(C33,$XEQ$2:$XER$4,2,FALSE)","v":1000000},null,null,{"$f":"\"Custo Nominal ao Longo do Tempo (n<=10) (\" & C33 & \")\"","v":"Custo Nominal ao Longo do Tempo (n<=10) (Milhões)"}]
[null,"Custo Analisado","Total"]
[]
[]
[null,"Ano",{"$f":"\"Valor (\"&C33&\")\"","v":"Valor (Milhões)"},"%"]
[1,{"$f":"C10","v":0},{"$f":"INDEX(Financeiro!$D$12:$M$23,MATCH($C$34,Financeiro!$C$12:$C$23,0),MATCH(A38,Financeiro!$D$11:$M$11,0))/$D$33","v":{"v":0,"d":"0.0"}},{"$f":"IFERROR(C38/SUM($C$38:$C$47),\"-\")","v":"-"}]
[2,{"$f":"B38+1","v":1},{"$f":"INDEX(Financeiro!$D$12:$M$23,MATCH($C$34,Financeiro!$C$12:$C$23,0),MATCH(A39,Financeiro!$D$11:$M$11,0))/$D$33","v":{"v":0,"d":"0.0"}},{"$f":"IFERROR(C39/SUM($C$38:$C$47),\"-\")","v":"-"}]
[3,{"$f":"B39+1","v":2},{"$f":"INDEX(Financeiro!$D$12:$M$23,MATCH($C$34,Financeiro!$C$12:$C$23,0),MATCH(A40,Financeiro!$D$11:$M$11,0))/$D$33","v":{"v":0,"d":"0.0"}},"-"]
[4,3,{"$f":"INDEX(Financeiro!$D$12:$M$23,MATCH($C$34,Financeiro!$C$12:$C$23,0),MATCH(A41,Financeiro!$D$11:$M$11,0))/$D$33","v":{"v":0,"d":"0.0"}},"-"]
[5,4,{"$f":"INDEX(Financeiro!$D$12:$M$23,MATCH($C$34,Financeiro!$C$12:$C$23,0),MATCH(A42,Financeiro!$D$11:$M$11,0))/$D$33","v":{"v":0,"d":"0.0"}},"-"]
[6,5,{"$f":"INDEX(Financeiro!$D$12:$M$23,MATCH($C$34,Financeiro!$C$12:$C$23,0),MATCH(A43,Financeiro!$D$11:$M$11,0))/$D$33","v":{"v":0,"d":"0.0"}},"-"]
[7,6,{"$f":"INDEX(Financeiro!$D$12:$M$23,MATCH($C$34,Financeiro!$C$12:$C$23,0),MATCH(A44,Financeiro!$D$11:$M$11,0))/$D$33","v":{"v":0,"d":"0.0"}},"-"]
[8,7,{"$f":"INDEX(Financeiro!$D$12:$M$23,MATCH($C$34,Financeiro!$C$12:$C$23,0),MATCH(A45,Financeiro!$D$11:$M$11,0))/$D$33","v":{"v":0,"d":"0.0"}},"-"]
[9,8,{"$f":"INDEX(Financeiro!$D$12:$M$23,MATCH($C$34,Financeiro!$C$12:$C$23,0),MATCH(A46,Financeiro!$D$11:$M$11,0))/$D$33","v":{"v":0,"d":"0.0"}},"-"]
[10,9,{"$f":"INDEX(Financeiro!$D$12:$M$23,MATCH($C$34,Financeiro!$C$12:$C$23,0),MATCH(A47,Financeiro!$D$11:$M$11,0))/$D$33","v":{"v":0,"d":"0.0"}},"-"]

{"sheet":"Cálculo e Premissas >>","index":3,"n_rows":5,"n_cols":2,"rows_kept":5}
[]
[null,"Visão Financeira"]
[null,"Custos Financeiros Diretos"]
[null,"Custos de Conformidade"]
[null,"Custos Adm Pública"]

{"sheet":"Financeiro","index":4,"n_rows":23,"n_cols":15,"rows_kept":23}
[]
[null,"SEPEC/Seae: Secretaria de Advocacia da Concorrência e Competitividade"]
[]
[]
[null,"Período (anos):",10,"(máximo 10 anos)"]
[]
[null,"Taxa de Desconto:",{"v":0.0412,"d":"4.12%"},"Referência: SELIC + Inflação out/2020 = 2% + 2.12%"]
[{"$nulls":3}," Ajustar taxa conforme SELIC e inflação vigentes. Pode-se utilizar o WACC da indústria, caso necessário."]
[]
[]
[null,null,"Ano >>",1,2,3,4,5,6,7,8,9,10,"Total Nominal","Valor Presente"]
[null,null,"Custos Financeiros Diretos",{"$f":"D13+D14","v":0},0,0,0,0,0,0,0,0,0,0,0]
[null,null,"Empresa",{"$f":"(D$11<=PeriodoFinanceiro)*SUMIF('Custos Financeiros Diretos'!$F$37:$F$237,\"Empresa\",'Custos Financeiros Diretos'!$I$37:$I$237)","v":0},{"$f":"(E$11<=PeriodoFinanceiro)*SUMIFS('Custos Financeiros Diretos'!$I$37:$I$237,'Custos Financeiros Diretos'!$F$37:$F$237,\"Empresa\",'Custos Financeiros Diretos'!$D$37:$D$237,\"Recorrente\")","v":0},{"$f":"(F$11<=PeriodoFinanceiro)*SUMIFS('Custos Financeiros Diretos'!$I$37:$I$237,'Custos Financeiros Diretos'!$F$37:$F$237,\"Empresa\",'Custos Financeiros Diretos'!$D$37:$D$237,\"Recorrente\")","v":0},{"$f":"(G$11<=PeriodoFinanceiro)*SUMIFS('Custos Financeiros Diretos'!$I$37:$I$237,'Custos Financeiros Diretos'!$F$37:$F$237,\"Empresa\",'Custos Financeiros Diretos'!$D$37:$D$237,\"Recorrente\")","v":0},{"$f":"(H$11<=PeriodoFinanceiro)*SUMIFS('Custos Financeiros Diretos'!$I$37:$I$237,'Custos Financeiros Diretos'!$F$37:$F$237,\"Empresa\",'Custos Financeiros Diretos'!$D$37:$D$237,\"Recorrente\")","v":0},{"$f":"(I$11<=PeriodoFinanceiro)*SUMIFS('Custos Financeiros Diretos'!$I$37:$I$237,'Custos Financeiros Diretos'!$F$37:$F$237,\"Empresa\",'Custos Financeiros Diretos'!$D$37:$D$237,\"Recorrente\")","v":0},{"$f":"(J$11<=PeriodoFinanceiro)*SUMIFS('Custos Financeiros Diretos'!$I$37:$I$237,'Custos Financeiros Diretos'!$F$37:$F$237,\"Empresa\",'Custos Financeiros Diretos'!$D$37:$D$237,\"Recorrente\")","v":0},{"$f":"(K$11<=PeriodoFinanceiro)*SUMIFS('Custos Financeiros Diretos'!$I$37:$I$237,'Custos Financeiros Diretos'!$F$37:$F$237,\"Empresa\",'Custos Financeiros Diretos'!$D$37:$D$237,\"Recorrente\")","v":0},{"$f":"(L$11<=PeriodoFinanceiro)*SUMIFS('Custos Financeiros Diretos'!$I$37:$I$237,'Custos Financeiros Diretos'!$F$37:$F$237,\"Empresa\",'Custos Financeiros Diretos'!$D$37:$D$237,\"Recorrente\")","v":0},{"$f":"(M$11<=PeriodoFinanceiro)*SUMIFS('Custos Financeiros Diretos'!$I$37:$I$237,'Custos Financeiros Diretos'!$F$37:$F$237,\"Empresa\",'Custos Financeiros Diretos'!$D$37:$D$237,\"Recorrente\")","v":0},{"$f":"SUM(D13:M13)","v":0},{"$f":"SUMPRODUCT(TRANSPOSE(D13:M13),FatorDesconto)","v":0}]
[null,null,"Cidadão",{"$f":"(D$11<=PeriodoFinanceiro)*SUMIF('Custos Financeiros Diretos'!$F$37:$F$237,\"Cidadão\",'Custos Financeiros Diretos'!$I$37:$I$237)","v":0},{"$f":"(E$11<=PeriodoFinanceiro)*SUMIFS('Custos Financeiros Diretos'!$I$37:$I$237,'Custos Financeiros Diretos'!$F$37:$F$237,\"Cidadão\",'Custos Financeiros Diretos'!$D$37:$D$237,\"Recorrente\")","v":0},{"$f":"(F$11<=PeriodoFinanceiro)*SUMIFS('Custos Financeiros Diretos'!$I$37:$I$237,'Custos Financeiros Diretos'!$F$37:$F$237,\"Cidadão\",'Custos Financeiros Diretos'!$D$37:$D$237,\"Recorrente\")","v":0},{"$f":"(G$11<=PeriodoFinanceiro)*SUMIFS('Custos Financeiros Diretos'!$I$37:$I$237,'Custos Financeiros Diretos'!$F$37:$F$237,\"Cidadão\",'Custos Financeiros Diretos'!$D$37:$D$237,\"Recorrente\")","v":0},{"$f":"(H$11<=PeriodoFinanceiro)*SUMIFS('Custos Financeiros Diretos'!$I$37:$I$237,'Custos Financeiros Diretos'!$F$37:$F$237,\"Cidadão\",'Custos Financeiros Diretos'!$D$37:$D$237,\"Recorrente\")","v":0},{"$f":"(I$11<=PeriodoFinanceiro)*SUMIFS('Custos Financeiros Diretos'!$I$37:$I$237,'Custos Financeiros Diretos'!$F$37:$F$237,\"Cidadão\",'Custos Financeiros Diretos'!$D$37:$D$237,\"Recorrente\")","v":0},{"$f":"(J$11<=PeriodoFinanceiro)*SUMIFS('Custos Financeiros Diretos'!$I$37:$I$237,'Custos Financeiros Diretos'!$F$37:$F$237,\"Cidadão\",'Custos Financeiros Diretos'!$D$37:$D$237,\"Recorrente\")","v":0},{"$f":"(K$11<=PeriodoFinanceiro)*SUMIFS('Custos Financeiros Diretos'!$I$37:$I$237,'Custos Financeiros Diretos'!$F$37:$F$237,\"Cidadão\",'Custos Financeiros Diretos'!$D$37:$D$237,\"Recorrente\")","v":0},{"$f":"(L$11<=PeriodoFinanceiro)*SUMIFS('Custos Financeiros Diretos'!$I$37:$I$237,'Custos Financeiros Diretos'!$F$37:$F$237,\"Cidadão\",'Custos Financeiros Diretos'!$D$37:$D$237,\"Recorrente\")","v":0},{"$f":"(M$11<=PeriodoFinanceiro)*SUMIFS('Custos Financeiros Diretos'!$I$37:$I$237,'Custos Financeiros Diretos'!$F$37:$F$237,\"Cidadão\",'Custos Financeiros Diretos'!$D$37:$D$237,\"Recorrente\")","v":0},0,{"$f":"SUMPRODUCT(TRANSPOSE(D14:M14),FatorDesconto)","v":0}]
[]
[null,null,"Custos de Conformidade",{"$f":"D17+D18","v":0},0,0,0,0,0,0,0,0,0,0,0]
[null,null,"Empresa",{"$f":"(D$11<=PeriodoFinanceiro)*SUMIF('Custos de Conformidade'!$F$56:$F$256,\"Empresa\",'Custos de Conformidade'!$Q$56:$Q$256)","v":0},{"$f":"(E$11<=PeriodoFinanceiro)*SUMIFS('Custos de Conformidade'!$Q$56:$Q$256,'Custos de Conformidade'!$F$56:$F$256,\"Empresa\",'Custos de Conformidade'!$D$56:$D$256,\"Recorrente\")","v":0},{"$f":"(F$11<=PeriodoFinanceiro)*SUMIFS('Custos de Conformidade'!$Q$56:$Q$256,'Custos de Conformidade'!$F$56:$F$256,\"Empresa\",'Custos de Conformidade'!$D$56:$D$256,\"Recorrente\")","v":0},{"$f":"(G$11<=PeriodoFinanceiro)*SUMIFS('Custos de Conformidade'!$Q$56:$Q$256,'Custos de Conformidade'!$F$56:$F$256,\"Empresa\",'Custos de Conformidade'!$D$56:$D$256,\"Recorrente\")","v":0},{"$f":"(H$11<=PeriodoFinanceiro)*SUMIFS('Custos de Conformidade'!$Q$56:$Q$256,'Custos de Conformidade'!$F$56:$F$256,\"Empresa\",'Custos de Conformidade'!$D$56:$D$256,\"Recorrente\")","v":0},{"$f":"(I$11<=PeriodoFinanceiro)*SUMIFS('Custos de Conformidade'!$Q$56:$Q$256,'Custos de Conformidade'!$F$56:$F$256,\"Empresa\",'Custos de Conformidade'!$D$56:$D$256,\"Recorrente\")","v":0},{"$f":"(J$11<=PeriodoFinanceiro)*SUMIFS('Custos de Conformidade'!$Q$56:$Q$256,'Custos de Conformidade'!$F$56:$F$256,\"Empresa\",'Custos de Conformidade'!$D$56:$D$256,\"Recorrente\")","v":0},{"$f":"(K$11<=PeriodoFinanceiro)*SUMIFS('Custos de Conformidade'!$Q$56:$Q$256,'Custos de Conformidade'!$F$56:$F$256,\"Empresa\",'Custos de Conformidade'!$D$56:$D$256,\"Recorrente\")","v":0},{"$f":"(L$11<=PeriodoFinanceiro)*SUMIFS('Custos de Conformidade'!$Q$56:$Q$256,'Custos de Conformidade'!$F$56:$F$256,\"Empresa\",'Custos de Conformidade'!$D$56:$D$256,\"Recorrente\")","v":0},{"$f":"(M$11<=PeriodoFinanceiro)*SUMIFS('Custos de Conformidade'!$Q$56:$Q$256,'Custos de Conformidade'!$F$56:$F$256,\"Empresa\",'Custos de Conformidade'!$D$56:$D$256,\"Recorrente\")","v":0},{"$f":"SUM(D17:M17)","v":0},{"$f":"SUMPRODUCT(TRANSPOSE(D17:M17),FatorDesconto)","v":0}]
[null,null,"Cidadão",{"$f":"(D$11<=PeriodoFinanceiro)*SUMIF('Custos de Conformidade'!$F$56:$F$256,\"Cidadão\",'Custos de Conformidade'!$Q$56:$Q$256)","v":0},{"$f":"(E$11<=PeriodoFinanceiro)*SUMIFS('Custos de Conformidade'!$Q$56:$Q$256,'Custos de Conformidade'!$F$56:$F$256,\"Cidadão\",'Custos de Conformidade'!$D$56:$D$256,\"Recorrente\")","v":0},{"$f":"(F$11<=PeriodoFinanceiro)*SUMIFS('Custos de Conformidade'!$Q$56:$Q$256,'Custos de Conformidade'!$F$56:$F$256,\"Cidadão\",'Custos de Conformidade'!$D$56:$D$256,\"Recorrente\")","v":0},{"$f":"(G$11<=PeriodoFinanceiro)*SUMIFS('Custos de Conformidade'!$Q$56:$Q$256,'Custos de Conformidade'!$F$56:$F$256,\"Cidadão\",'Custos de Conformidade'!$D$56:$D$256,\"Recorrente\")","v":0},{"$f":"(H$11<=PeriodoFinanceiro)*SUMIFS('Custos de Conformidade'!$Q$56:$Q$256,'Custos de Conformidade'!$F$56:$F$256,\"Cidadão\",'Custos de Conformidade'!$D$56:$D$256,\"Recorrente\")","v":0},{"$f":"(I$11<=PeriodoFinanceiro)*SUMIFS('Custos de Conformidade'!$Q$56:$Q$256,'Custos de Conformidade'!$F$56:$F$256,\"Cidadão\",'Custos de Conformidade'!$D$56:$D$256,\"Recorrente\")","v":0},{"$f":"(J$11<=PeriodoFinanceiro)*SUMIFS('Custos de Conformidade'!$Q$56:$Q$256,'Custos de Conformidade'!$F$56:$F$256,\"Cidadão\",'Custos de Conformidade'!$D$56:$D$256,\"Recorrente\")","v":0},{"$f":"(K$11<=PeriodoFinanceiro)*SUMIFS('Custos de Conformidade'!$Q$56:$Q$256,'Custos de Conformidade'!$F$56:$F$256,\"Cidadão\",'Custos de Conformidade'!$D$56:$D$256,\"Recorrente\")","v":0},{"$f":"(L$11<=PeriodoFinanceiro)*SUMIFS('Custos de Conformidade'!$Q$56:$Q$256,'Custos de Conformidade'!$F$56:$F$256,\"Cidadão\",'Custos de Conformidade'!$D$56:$D$256,\"Recorrente\")","v":0},{"$f":"(M$11<=PeriodoFinanceiro)*SUMIFS('Custos de Conformidade'!$Q$56:$Q$256,'Custos de Conformidade'!$F$56:$F$256,\"Cidadão\",'Custos de Conformidade'!$D$56:$D$256,\"Recorrente\")","v":0},0,{"$f":"SUMPRODUCT(TRANSPOSE(D18:M18),FatorDesconto)","v":0}]
[]
[null,null,"Custos Adm Pública",{"$f":"(D$11<=PeriodoFinanceiro)*SUM('Custos - Administração Pública'!$J$41:$J$241)","v":0},{"$f":"(E$11<=PeriodoFinanceiro)*SUMIF('Custos - Administração Pública'!$D$41:$D$241,\"Recorrente\",'Custos - Administração Pública'!$J$41:$J$241)","v":0},{"$f":"(F$11<=PeriodoFinanceiro)*SUMIF('Custos - Administração Pública'!$D$41:$D$241,\"Recorrente\",'Custos - Administração Pública'!$J$41:$J$241)","v":0},{"$f":"(G$11<=PeriodoFinanceiro)*SUMIF('Custos - Administração Pública'!$D$41:$D$241,\"Recorrente\",'Custos - Administração Pública'!$J$41:$J$241)","v":0},{"$f":"(H$11<=PeriodoFinanceiro)*SUMIF('Custos - Administração Pública'!$D$41:$D$241,\"Recorrente\",'Custos - Administração Pública'!$J$41:$J$241)","v":0},{"$f":"(I$11<=PeriodoFinanceiro)*SUMIF('Custos - Administração Pública'!$D$41:$D$241,\"Recorrente\",'Custos - Administração Pública'!$J$41:$J$241)","v":0},{"$f":"(J$11<=PeriodoFinanceiro)*SUMIF('Custos - Administração Pública'!$D$41:$D$241,\"Recorrente\",'Custos - Administração Pública'!$J$41:$J$241)","v":0},{"$f":"(K$11<=PeriodoFinanceiro)*SUMIF('Custos - Administração Pública'!$D$41:$D$241,\"Recorrente\",'Custos - Administração Pública'!$J$41:$J$241)","v":0},{"$f":"(L$11<=PeriodoFinanceiro)*SUMIF('Custos - Administração Pública'!$D$41:$D$241,\"Recorrente\",'Custos - Administração Pública'!$J$41:$J$241)","v":0},{"$f":"(M$11<=PeriodoFinanceiro)*SUMIF('Custos - Administração Pública'!$D$41:$D$241,\"Recorrente\",'Custos - Administração Pública'!$J$41:$J$241)","v":0},{"$f":"SUM(D20:M20)","v":0},{"$f":"SUMPRODUCT(TRANSPOSE(D20:M20),FatorDesconto)","v":0}]
[]
[]
[null,null,"Total",{"$f":"D20+D16+D12","v":0},0,0,0,0,0,0,0,0,0,0,0]

{"sheet":"Custos Financeiros Diretos","index":5,"n_rows":37,"n_cols":9,"rows_kept":37,"merged":[[7,3,12,4]]}
[]
[null,"SEPEC/Seae: Secretaria de Advocacia da Concorrência e Competitividade"]
[null,"Custos Financeiros Diretos"]
[]
[]
[null,null,"Tipo do Custo:"]
[]
[null,null,"Descrição:"]
{"$rows_empty":7}
[null,null,"Único ou Recorrente?"]
[]
[]
[null,null,"Frequência Anual da Atividade:"]
[]
[]
[null,null,"Afetado:"]
[]
[]
[null,null,"Quantidade de Afetados:"]
[]
[]
[null,null,"Custo:"]
{"$rows_empty":8}
[null,"Tipo Custo","Descrição","Único ou Recorrente","Frequência anual da atividade","Afetado","Quantidade de Afetados","Custo","Total"]

{"sheet":"Custos de Conformidade","index":6,"n_rows":56,"n_cols":17,"rows_kept":56,"merged":[[8,3,10,4],[23,2,25,2]]}
[]
[null,"SEPEC/Seae: Secretaria de Advocacia da Concorrência e Competitividade"]
[null,"Custos de Conformidade"]
[]
[]
[]
[null,null,"Tipo do Custo:"]
[]
[null,null,"Descrição:"]
[]
[]
[]
[null,null,"Único ou Recorrente?"]
[]
[]
[null," ","Frequência anual da atividade:"]
[]
[]
[null,null,"Afetado:"]
[]
[null,null,"Quantidade de Afetados:"]
[]
[]
[null,null,"Número de Funcionários por empresa que desempenharam a atividade:"]
[]
[]
[]
[]
[null,null,"Quantidade de horas gastas  na atividade:"]
[]
[null,null,"Custos hora por empregado (salário + encargos) (R$/h):"]
[]
[null,null,"Outros custos por funcionário:"]
[]
[]
[null,null,"Custos Cidadão:"]
[]
[]
[null,null,"Custos de Aquisição:"]
[]
[]
[null,null,"Horas de Atraso:"]
[]
[null,null,"Custo por hora do atraso:"]
[]
[]
[null,null,"Custos de Capital:"]
{"$rows_empty":8}
[null,"Tipo Custo","Descrição","Único ou Recorrente","Frequência anual da atividade","Afetado","Quantidade de Afetados","Núm de funcionários alocados - Empresa","Tempo gasto para atividade - Empresa(h)","Custos Médio por hora (salário + encargos) (R$/h)","Outros custos - Empresa","Custo Cidadão","Custo Aquisição","Horas de Atraso","Custo por hora de atraso","Custo  de Capital","Total"]

{"sheet":"Custos - Administração Pública","index":7,"n_rows":41,"n_cols":10,"rows_kept":41,"merged":[[7,3,12,4]]}
[]
[null,"SEPEC/Seae: Secretaria de Advocacia da Concorrência e Competitividade"]
[null,"Custos para a Administração Pública"]
[]
[]
[null,null,"Tipo do Custo:"]
[]
[null,null,"Descrição:"]
{"$rows_empty":7}
[null,null,"Único ou Recorrente?"]
[]
[]
[null," ","Frequência anual:"]
[]
[]
[null,null,"Número de servidores alocados:"]
[]
[]
[null,null,"Horas gastas na atividade (por frequência):"]
[]
[null,null,"Custos servidor por hora (salário + encargos) (R$/h):"]
[]
[]
[null,null,"Custo:"]
{"$rows_empty":10}
[null,"Tipo Custo","Descrição","Único ou Recorrente","Frequência anual da atividade","Núm de servidores alocados","Tempo gasto para atividade(h)","Custos Médio por hora (salário + encargos) (R$/h)","Custos - Geral","Total"]

{"sheet":"Suporte >>","index":8,"n_rows":1,"n_cols":9,"rows_kept":1}
[{"$nulls":8},"NÃO MEXER"]

{"sheet":"Metodologia","index":9,"n_rows":7,"n_cols":5,"rows_kept":7}
[]
[]
[null,"Referência","Dimensão","Descrição","Fonte"]
[null,null,"Estrutura de Custos","A regulamentação tem várias consequências para as empresas. Os custos administrativos são apenas um tipo de custos que a regulamentação pode acarretar. Estes custos podem ser estruturados em Custos Financeiros DIretos, Custos de Conformidade e Custos Estruturais de Longo Prazo.\n\nOs Custos Financeiros Diretos são o resultado de uma obrigação concreta e direta de transferir uma quantia em dinheiro para o Governo ou autoridade competente. Portanto, esses custos não estão relacionados à necessidade de informações. Esses custos incluem encargos administrativos, taxas, etc, como, por exemplo, as taxas para solicitar uma licença.\n\nCustos de Conformidade são todos os custos de conformidade com a regulamentação, com exceção dos custos financeiros diretos e dos custos estruturais de longo prazo. No contexto do Modelo de Custo Padrão, eles podem ser divididos em 'custos substantivos de conformidade' e 'custos administrativos'.\n\nJá os Custos Estruturais de Longo Prazo são todos os investimentos de capital em bens de infraestrutura com foco em ajustes de longo prazo. Esses custos foram incorporados como uma categoria dos Custos de Conformidade.\n\nFigura: Estrutura de custos para empresas: Fonte: (Charité, et. al., 2004)","Charité, D. et al.\nInternational Standard Cost Model Manual.  Standard Cost Model (SCM) Network. 2004\nDisponível em: https://www.oecd.org/regreform/regulatory-policy/34227698.pdf\nAcesso em: 26 de out. de 2020."]
[null,null,"Custos de Conformidade","O Governo Australiano, em sua calculadora de custos regulatório, subdivide os Custos de Conformidade em 10 categorias: Notificação, Educação, Permissão, Compras, Manutenção de Registros, Cumprimento Legal, Publicação e Documentação, Processual, Atraso e Outros. A Calculadora de Onerosidade Regulatória da SEAE replica esta subdivisão em sua aba de Custos de Conformidade.\n\n Com exceção dos 'custos de compra' e 'custos de atraso', as demais categorias são baseadas na atividade de trabalho. Os custos podem ser iniciais ou contínuos e para empresas ou cidadãos.\n\nCategorias:\nNotificação: as empresas enfrentam custos quando precisam relatar determinados eventos a uma autoridade reguladora, antes ou depois da ocorrência do evento. Exemplo: Uma empresa precisa notificar uma autoridade pública antes de ter permissão para vender alimentos.\n\nEducação: as empresas enfrentam custos ao se manterem atualizadas com os requisitos regulamentares. Exemplo: Uma empresa precisa obter os detalhes da nova legislação e comunicar os novos requisitos aos funcionários.\n\nPermissão: as empresas enfrentam custos ao se inscrever e manter a permissão para realizar uma atividade. Exemplo: Uma empresa precisa fazer uma verificação policial antes de empregar funcionários legalmente.\n\nCompras: as empresas enfrentam custos ao ter que adquirir um serviço (consultoria) ou um produto (materiais ou equipamentos) para cumprir uma regulamentação. Exemplo: Uma empresa precisa obter aconselhamento jurídico (serviço) ou ter um extintor de incêndio no local (produto).\n\nManutenção de registros: as empresas enfrentam custos para manter os documentos legais atualizados. Exemplo: Uma empresa precisa manter registros de acidentes que acontecem em seu local de trabalho.\n","Department of the Prime Minister and Cabinet. Australian Government.\nSummary of Compliance Cost Categories.\nDisponível em: https://rbm.obpr.gov.au/help.aspx?path=%2fUsing+the+Compliance+Cost+Calculator%2f2.About+cost+categories.txt.\nAcesso em: 26 de out. de 2020.\n"]
[{"$nulls":3},"Cumprimento Legal: as empresas enfrentam custos ao cooperar com auditorias, inspeções e atividades de fiscalização. Exemplo: Uma empresa precisa supervisionar um inspetor do governo quando este verifica se a empresa cumpre as leis antifumo.\n\nPublicação e documentação: as empresas enfrentam custos ao ter que produzir documentos para terceiros. Exemplo: Uma empresa precisa exibir sinais de alerta ao redor de equipamentos perigosos ou um sinal na entrada das instalações comerciais domiciliares.\n\nProcessual: as empresas enfrentam custos não administrativos impostos por alguns regulamentos. Exemplo: Uma empresa precisa realizar um exercício de segurança contra incêndio várias vezes por ano.\n\nAtraso: as empresas enfrentam custos quando atrasos administrativos resultam em despesas e perda de receitas. Exemplo: Uma empresa precisa aguardar a aprovação de um aplicativo antes de começar a negociar, o que faz com que perca a oportunidade de obter lucros nesse período\n\nOutros: qualquer outro custo de conformidade enfrentado por empresas que não se enquadre em uma das categorias acima."]
[null,null,"Financeira","Uma das principais métricas para análise de viabilidade é o Valor Presente Líquido - VPL. Sua análise auxilia a tomada de decisão com mais segurança e dirime dúvidas e indecisões dos gestores. \n\nNesse sentido, inspirada na Calculadora de Imacto Regulatório do Departamento de Negócios, Energia e Indústria do Reino Unido, a Calculadora de Onerosidade Regulatória da SEAE apresenta em sua aba Financeira o VPL de médio prazo (máximo 10 anos), com uma taxa padrão de desconto de 4,12% (2% SELIC + 2,12% Inflação).","Department for Business, Energy & Industrial Strategy. United Kingdom Government\nImpact assessment calculator. Outubro de 2020.\nDisponível em: https://www.gov.uk/government/publications/impact-assessment-calculator--3\nAcesso em: 26 de outubro de 2020."]

{"sheet":"Taxa de Desconto","index":10,"n_rows":21,"n_cols":9,"rows_kept":21}
["Ano (t)"," (t-1)","Taxa de Desconto (r)","1+ Taxa (1+r)","1/Fator de Desconto(Π(1+rt))","Fator de Desconto (DF)","Taxa de Anuidade (ΣDF)"]
[{"$f":"1","v":1},0,0,{"$f":"1+C2","v":1},{"v":1,"d":"1.0000"},{"$f":"1/E2","v":{"v":1,"d":"1.000000000"}},{"$f":"F2","v":{"v":1,"d":"1.00000000"}}]
[{"$f":"A2+1","v":2},1,{"$f":"TaxaDesconto","v":0.0412},{"$f":"1+C3","v":1.0412},{"$f":"D3^B3","v":1.0412},{"v":0.9604302727621975,"d":"0.960430273"},{"$f":"G2+F3","v":{"v":1.9604302727621974,"d":"1.96043027"}}]
[{"$f":"A3+1","v":3},2,0.0412,1.0412,{"$f":"D4^B4","v":{"v":1.0840974399999999,"d":"1.0841"}},{"v":0.9224263088380692,"d":"0.922426309"},{"$f":"G3+F4","v":{"v":2.8828565816002665,"d":"2.88285658"}}]
[4,3,0.0412,1.0412,{"v":1.1287622545279998,"d":"1.1288"},{"v":0.8859261514003738,"d":"0.885926151"},{"v":3.7687827330006405,"d":"3.76878273"}]
[5,4,0.0412,1.0412,{"v":1.1752672594145532,"d":"1.1753"},{"v":0.8508702952366249,"d":"0.850870295"},{"v":4.619653028237265,"d":"4.61965303"}]
[6,5,0.0412,1.0412,{"v":1.2236882705024328,"d":"1.2237"},{"v":0.8172015897393632,"d":"0.817201590"},{"v":5.436854617976628,"d":"5.43685462"}]
[7,6,0.0412,1.0412,{"v":1.2741042272471328,"d":"1.2741"},{"v":0.7848651457350782,"d":"0.784865146"},{"$f":"G7+F8","v":{"v":6.2217197637117065,"d":"6.22171976"}}]
[8,7,0.0412,1.0412,{"v":1.3265973214097146,"d":"1.3266"},{"v":0.7538082459998829,"d":"0.753808246"},{"v":6.9755280097115895,"d":"6.97552801"}]
[9,8,0.0412,1.0412,{"v":1.3812531310517948,"d":"1.3813"},{"v":0.7239802593160612,"d":"0.723980259"},{"v":7.699508269027651,"d":"7.69950827"}]
[10,9,0.0412,1.0412,{"v":1.4381607600511286,"d":"1.4382"},{"v":0.6953325579293713,"d":"0.695332558"},{"v":8.394840826957022,"d":"8.39484083"},null,"Período máximo 10"]
[11,10,0.0412,1.0412,{"v":1.497412983365235,"d":"1.4974"},{"v":0.6678184382725426,"d":"0.667818438"},{"v":9.062659265229565,"d":"9.06265927"}]
[12,11,0.0412,1.0412,{"v":1.5591063982798827,"d":"1.5591"},{"v":0.6413930448257228,"d":"0.641393045"},{"v":9.704052310055287,"d":"9.70405231"}]
[13,12,0.0412,1.0412,{"v":1.6233415818890136,"d":"1.6233"},{"v":0.6160132969897454,"d":"0.616013297"},{"v":10.320065607045033,"d":"10.32006561"}]
[14,13,0.0412,1.0412,{"v":1.6902232550628409,"d":"1.6902"},{"v":0.5916378188530017,"d":"0.591637819"},{"v":10.911703425898034,"d":"10.91170343"}]
[15,14,0.0412,1.0412,{"v":1.7598604531714297,"d":"1.7599"},{"v":0.5682268717374201,"d":"0.568226872"},{"v":11.479930297635455,"d":"11.47993030"}]
[16,15,0.0412,1.0412,{"v":1.8323667038420925,"d":"1.8324"},{"v":0.5457422894135806,"d":"0.545742289"},{"v":12.025672587049035,"d":"12.02567259"}]
[17,16,0.0412,1.0412,{"v":1.9078602120403867,"d":"1.9079"},{"v":0.5241474158793513,"d":"0.524147416"},{"v":12.549820002928387,"d":"12.54982000"}]
[18,17,0.0412,1.0412,{"v":1.9864640527764506,"d":"1.9865"},{"v":0.5034070456006063,"d":"0.503407046"},{"v":13.053227048528994,"d":"13.05322705"}]
[19,18,0.0412,1.0412,{"v":2.06830637175084,"d":"2.0683"},{"v":0.4834873661166024,"d":"0.483487366"},{"v":13.536714414645596,"d":"13.53671441"}]
[20,19,0.0412,1.0412,{"v":2.1535205942669746,"d":"2.1535"},{"v":0.4643559029164449,"d":"0.464355903"},{"v":14.001070317562041,"d":"14.00107032"}]

{"sheet":"Base","index":11,"n_rows":41,"n_cols":9,"rows_kept":41}
["Tipos Custos Conformidade","Descrição",null,null," ",{"$nulls":3},"NÃO MEXER"]
["Notificação","Custos incorridos quando empresas precisam relatar determinados eventos a uma autoridade reguladora, antes ou depois da ocorrência do evento. Exemplo: Uma empresa precisa notificar uma autoridade pública antes de ter permissão para vender alimentos.","Custo da mão-de-obra (R$/hora)","(Nº funcionários x Horas Dedicadas x Nº de Interações) x Nº Empresas"," "]
["Capacitação","Custos incorridos para manter-se atualizado com os requisitos regulatórios. Exemplo: Uma empresa precisa obter os detalhes da nova legislação e comunicar os novos requisitos aos funcionários.","Custo da mão-de-obra (R$/hora)","(Nº funcionários x Horas Dedicadas x Nº de Interações) x Nº Empresas"," "]
["Permissão","Custos indiretos incorridos para solicitar e manter a permissão para realizar uma atividade. Exemplo: Uma empresa precisa fazer uma verificação de antecedentes criminais antes de empregar funcionários legalmente.","Custo da mão-de-obra (R$/hora)","(Nº funcionários x Horas Dedicadas x Nº de Interações) x Nº Empresas"," "]
["Compras","Custos ao adquirir um serviço (ex: consultoria) ou um produto (material ou equipamento) para cumprir uma regulamentação. Exemplo: Uma empresa precisa obter aconselhamento jurídico (serviço) ou ter um extintor de incêndio no local (produto).","Custo de Compra (R$/compra)","Nº de Compras por Ano x Nº Empresas"," "]
["Documentação e Registro","Custos incorridos para manter atualizados os documentos e/ou registros. Exemplo: Uma empresa precisa manter registros de acidentes que acontecem em seu local de trabalho.","Custo da mão-de-obra (R$/hora)","(Nº funcionários x Horas Dedicadas x Nº de Interações) x Nº Empresas"," "]
["Cumprimento legal","Custos incorridos para cooperar com auditorias, inspeções e atividades regulatórias. Exemplo: Uma empresa precisa supervisionar um inspetor do governo quando este verifica se a empresa cumpre as leis antifumo.","Custo da mão-de-obra (R$/hora)","(Nº funcionários x Horas Dedicadas x Nº de Interações) x Nº Empresas"," "]
["Publicação e documentação","Custos incorridos para a produção de documentos para terceiros. Exemplo: Uma empresa precisa publicar seu balanço em jornais de grande circulação.","Custo da mão-de-obra (R$/hora)","(Nº funcionários x Horas Dedicadas x Nº de Interações) x Nº Empresas"," "]
["Processual","Custos não administrativos impostos por alguma regulamentação. Exemplo: Uma empresa precisa realizar um exercício de segurança contra incêndio várias vezes por ano.","Custo da mão-de-obra (R$/hora)","(Nº funcionários x Horas Dedicadas x Nº de Interações) x Nº Empresas"," "]
["Atraso","Custos incorridos em função de: atrasos administrativos que resultem em despesas trabalhistas, oportunidade em função do investimento realizado para iniciar uma operação e  incorridos em função de atrasos administrativos que resultem em perda de receita. Exemplo: Uma empresa precisa aguardar a aprovação de uma licença antes de começar a negociar, o que faz com que perca a oportunidade de obter lucros nesse período","Custo da mão-de-obra (R$/hora)","(Nº funcionários x Horas Dedicadas x Nº de Interações) x Nº Empresas"," "]
["Custos de Capital","Custos de capital relacionados com mudanças estruturais, inclusive intervenções de infraestrutura, decorrentes da regulamentação.","Custo de Capital anual (R$/Ano)","Nº Empresas x Nº de Interações"," "]
["Outros","Qualquer outro custo de compliance enfrentado pelas empresas que não se enquadre em uma das categorias acima","Custo da mão-de-obra (R$/hora)","(Nº funcionários x Horas Dedicadas x Nº de Interações) x Nº Empresas"," "]
[{"$nulls":4}," "]
[{"$nulls":4}," "]
["Tipo Afetados",{"$nulls":3}," "]
["Cidadão"]
["Empresa"]
[]
[]
["Tipo Custos Financeiros Diretos"]
["Impostos"]
["Taxas"]
["Tarifas"]
["Emolumentos"]
["Outorgas"]
["Outros"]
[]
[]
[]
["Custos Adm Pública"]
["Pessoal"]
["Aluguel de Espaço"]
["Investimento"]
["Manutenção"]
["Treinamento"]
["Outros"]
[]
[]
[]
[]
["v2.1"]